bitfinex/quotes_SOLUSD_20220128
["timestamp","ask_amount","ask_price","bid_price","bid_amount"]
[1643373842111,39.33955711,87.709,87.593,3.8084474]
[1643373842312,2.95669142,87.708,87.593,3.8084474]
[1643373842512,6.0,87.699,87.593,3.8084474]
[1643373842715,19.31,87.699,87.593,3.8084474]
[1643373842914,3.20669142,87.698,87.593,3.8084474]
[1643373843112,112.9,87.697,87.593,3.8084474]
[1643373843313,0.25,87.696,87.593,3.8084474]
[1643373843515,27.82388013,87.696,87.593,3.8084474]
[1643373843713,129.75281746,87.695,87.593,3.8084474]
[1643373843915,13.58,87.69,87.593,3.8084474]
[1643373844313,5.91387227,87.689,87.593,3.8084474]
[1643373844516,33.36768744,87.689,87.593,3.8084474]
[1643373844713,30.41050659,87.688,87.55,13.58]
[1643373844914,0.25,87.687,87.547,23.7389]
[1643373845113,47.51332405,87.687,87.54,13.58]
[1643373845314,47.51332405,87.687,87.531,47.9151]
[1643373845315,47.26332405,87.686,87.531,47.9151]
[1643373845515,112.9,87.685,87.528,3.13165142]
[1643373845716,17.142,87.66,87.538,6.0]
[1643373845917,17.142,87.66,87.501,23.7368]
[1643373845918,13.58,87.65,87.53,6.0]
[1643373846119,112.9,87.649,87.53,6.0]
[1643373846318,113.15,87.649,87.53,6.0]
[1643373846520,24.56004704,87.648,87.521,38.55905855]
[1643373846822,17.144,87.62,87.52,6.0]
[1643373847026,113.15,87.619,87.52,6.0]
[1643373847217,113.15,87.619,87.51,13.58]
[1643373847618,2.70718085,87.618,87.52,6.0]
[1643373847821,0.25,87.617,87.52,6.0]
[1643373848017,17.146,87.59,87.521,6.0]
[1643373848220,20.16018998,87.589,87.51,13.58]
[1643373848418,20.41018998,87.589,87.51,13.58]
[1643373849022,30.65018998,87.589,87.51,13.58]
[1643373849217,30.65018998,87.589,87.501,23.7368]
[1643373849421,17.147,87.58,87.501,23.7368]
[1643373849618,17.147,87.58,87.49,13.58]
[1643373849819,0.25,87.579,87.49,13.58]
[1643373850019,6.0,87.57,87.49,13.58]
[1643373850220,6.0,87.57,87.47,13.58]
[1643373850421,116.10669142,87.569,87.462,0.04518824]
[1643373850620,7.10703791,87.559,87.462,0.04518824]
[1643373850918,57.193,87.55,87.462,0.04518824]
[1643373851322,17.155,87.54,87.462,0.04518824]
[1643373851518,0.25,87.549,87.462,0.04518824]
[1643373851720,0.25,87.539,87.462,17.39188857]
[1643373851925,0.25,87.549,87.463,38.03221852]
[1643373852921,0.25,87.558,87.463,38.03221852]
[1643373853122,6.0,87.549,87.463,38.03221852]
[1643373853322,3.20669142,87.548,87.463,38.03221852]
[1643373853522,3.20669142,87.548,87.462,0.04518824]
[1643373853723,0.25,87.548,87.462,0.04518824]
[1643373853923,17.156,87.54,87.462,0.04518824]
[1643373854324,3.20669142,87.539,87.462,0.04518824]
[1643373854526,20.0149206,87.538,87.462,0.04518824]
[1643373854724,22.97161202,87.538,87.462,0.04518824]
[1643373854930,27.37889142,87.537,87.462,0.04518824]
[1643373855125,17.162,87.52,87.462,0.00518824]
[1643373855326,17.162,87.52,87.366,3.13165142]
[1643373855327,0.30788373,87.482,87.366,3.13165142]
[1643373855525,112.9,87.481,87.339,3.13165142]
[1643373855925,3.20669142,87.48,87.334,0.1]
[1643373856126,3.20669142,87.48,87.335,0.1]
[1643373856325,2.95669142,87.479,87.336,0.1]
[1643373856526,20.0149206,87.478,87.376,40.73192212]
[1643373856727,20.2649206,87.478,87.338,0.1]
[1643373856928,17.174,87.46,87.34,17.172]
[1643373857132,2.95669142,87.477,87.368,2.12306769]
[1643373857327,20.0149206,87.478,87.369,0.25]
[1643373857527,20.0149206,87.478,87.37,13.58]
[1643373857726,20.0149206,87.478,87.38,57.31558995]
[1643373857928,49.3062,87.519,87.38,80.50852917]
[1643373858128,17.162,87.51,87.4,17.16]
[1643373858328,2.95669142,87.533,87.401,0.25]
[1643373858628,16.9389,87.565,87.41,6.0]
[1643373858828,47.6755,87.569,87.42,13.58]
[1643373858829,24.77537439,87.568,87.42,13.58]
[1643373859032,2.95669142,87.564,87.43,6.0]
[1643373859227,2.95669142,87.564,87.431,49.10483026]
[1643373859427,2.48666526,87.539,87.431,55.35483026]
[1643373859632,2.48666526,87.539,87.44,6.0]
[1643373859834,2.48666526,87.539,87.441,0.25]
[1643373860034,2.48666526,87.539,87.442,6.0]
[1643373860238,5.44335668,87.539,87.442,6.0]
[1643373860439,17.158,87.53,87.442,6.0]
[1643373860634,28.018,87.53,87.432,23.719]
[1643373860834,3.20669142,87.529,87.442,6.0]
[1643373861037,3.20669142,87.529,87.431,49.10483026]
[1643373861235,2.95669142,87.528,87.402,24.2256]
[1643373861637,18.20486017,87.527,87.412,6.0]
[1643373861834,28.92592284,87.527,87.412,6.0]
[1643373862035,17.95486017,87.526,87.412,6.0]
[1643373862238,17.164,87.51,87.413,38.09784542]
[1643373862438,5.90635348,87.509,87.402,24.2256]
[1643373862637,9.1130449,87.509,87.402,24.2256]
[1643373862853,6.15635348,87.509,87.402,24.2256]
[1643373863054,2.95669142,87.508,87.391,22.6341]
[1643373863253,0.25,87.507,87.391,22.6341]
[1643373863456,0.25,87.507,87.392,47.07816264]
[1643373863655,2.95669142,87.506,87.392,47.07816264]
[1643373863857,0.25,87.505,87.392,47.07816264]
[1643373864058,21.35568617,87.489,87.392,47.07816264]
[1643373864255,0.25,87.488,87.392,47.07816264]
[1643373864456,21.35568617,87.489,87.402,6.0]
[1643373864857,2.95669142,87.488,87.402,6.0]
[1643373865055,2.95669142,87.488,87.392,47.07816264]
[1643373865255,2.95669142,87.51,87.402,6.0]
[1643373865456,47.0678,87.559,87.41,13.58]
[1643373865755,17.95486017,87.543,87.42,6.0]
[1643373865955,112.9,87.541,87.42,6.0]
[1643373866156,17.158,87.54,87.421,6.0]
[1643373866355,25.84474776,87.539,87.422,157.98979771]
[1643373866556,25.84474776,87.539,87.432,6.0]
[1643373866758,28.80143918,87.539,87.432,6.0]
[1643373866956,2.95669142,87.538,87.432,6.0]
[1643373867156,2.95669142,87.538,87.422,157.73979771]
[1643373867157,2.95669142,87.538,87.422,44.83979771]
[1643373867359,17.16,87.53,87.432,6.0]
[1643373867559,17.16,87.53,87.422,44.33979771]
[1643373867756,25.84474776,87.539,87.423,0.25]
[1643373868158,2.95669142,87.538,87.432,6.0]
[1643373868357,3.20669142,87.538,87.432,6.0]
[1643373868557,2.95669142,87.538,87.423,48.7914]
[1643373868960,2.95669142,87.537,87.423,48.7914]
[1643373869161,17.16,87.53,87.423,48.7914]
[1643373869560,2.95669142,87.529,87.423,48.5714]
[1643373869961,0.25,87.528,87.423,48.5714]
[1643373870161,17.162,87.52,87.423,48.5714]
[1643373870361,0.25,87.519,87.422,44.33979771]
[1643373870563,2.16729189,87.519,87.422,44.33979771]
[1643373871367,17.163,87.51,87.422,44.33979771]
[1643373871763,3.20669142,87.509,87.422,44.33979771]
[1643373872366,2.95669142,87.508,87.422,44.33979771]
[1643373872767,0.25,87.507,87.422,44.33979771]
[1643373872968,1.91729189,87.519,87.422,44.33979771]
[1643373874269,0.25,87.518,87.422,44.33979771]
[1643373874670,2.95669142,87.517,87.422,44.33979771]
[1643373874870,0.25,87.516,87.422,44.33979771]
[1643373875270,2.95669142,87.515,87.422,44.33979771]
[1643373875676,0.25,87.514,87.422,44.33979771]
[1643373876069,2.95669142,87.513,87.422,44.33979771]
[1643373876272,0.25,87.512,87.422,44.33979771]
[1643373876673,2.95669142,87.511,87.422,44.33979771]
[1643373876873,0.25,87.51,87.422,44.33979771]
[1643373877275,2.95669142,87.509,87.422,44.33979771]
[1643373877675,0.25,87.508,87.422,44.33979771]
[1643373878073,2.95669142,87.507,87.407,3.13165142]
[1643373878272,118.9,87.499,87.407,3.13165142]
[1643373878673,118.9,87.499,87.401,23.9202]
[1643373878674,3.20669142,87.498,87.401,23.9202]
[1643373879177,28.80143918,87.497,87.403,48.19405471]
[1643373879373,0.25,87.496,87.404,3.15752905]
[1643373881077,2.95669142,87.495,87.404,3.15752905]
[1643373881276,0.25,87.494,87.404,3.15752905]
[1643373881676,2.95669142,87.493,87.404,3.15752905]
[1643373881878,0.25,87.492,87.404,3.15752905]
[1643373882076,2.95669142,87.493,87.404,3.15752905]
[1643373882375,2.95669142,87.491,87.404,3.15752905]
[1643373882575,1.91729189,87.482,87.405,3.13165142]
[1643373882779,1.91729189,87.482,87.43,1.58495954]
[1643373883581,0.25,87.481,87.431,1.58495954]
[1643373883975,0.25,87.481,87.432,35.59658272]
[1643373884175,0.25,87.481,87.432,1.58495954]
[1643373884375,0.25,87.481,87.431,1.58495954]
[1643373884577,2.95669142,87.48,87.431,1.58495954]
[1643373884775,0.25,87.479,87.425,1.58495954]
[1643373884977,0.25,87.479,87.427,1.58495954]
[1643373885177,2.95669142,87.478,87.427,1.58495954]
[1643373885380,2.95669142,87.478,87.42,36.84547672]
[1643373885381,0.25,87.477,87.426,1.58495954]
[1643373885776,2.95669142,87.476,87.425,1.58495954]
[1643373886178,0.25,87.475,87.425,1.58495954]
[1643373886379,0.25,87.475,87.43,1.58495954]
[1643373886577,2.95669142,87.476,87.436,1.58495954]
[1643373886777,2.95669142,87.476,87.437,1.58495954]
[1643373887080,1.91729189,87.482,87.443,1.58495954]
[1643373887481,1.91729189,87.482,87.446,1.58495954]
[1643373888081,1.91729189,87.482,87.337,0.1]
[1643373888082,2.95669142,87.481,87.443,1.58495954]
[1643373888279,2.95669142,87.481,87.393,4.7367808]
[1643373888280,3.20669142,87.481,87.435,1.58495954]
[1643373888480,3.20669142,87.481,87.433,1.58495954]
[1643373888689,2.95669142,87.48,87.434,1.58495954]
[1643373888882,0.25,87.479,87.434,1.58495954]
[1643373889181,0.25,87.479,87.436,1.58495954]
[1643373889381,2.95669142,87.478,87.437,1.58495954]
[1643373889580,2.95669142,87.478,87.423,38.66811082]
[1643373889581,2.95669142,87.478,87.436,1.58495954]
[1643373889782,0.25,87.477,87.436,1.58495954]
[1643373890184,2.95669142,87.476,87.436,1.58495954]
[1643373890386,0.25,87.475,87.435,1.58495954]
[1643373890587,0.25,87.475,87.436,1.58495954]
[1643373890785,2.95669142,87.474,87.435,1.58495954]
[1643373890986,70.0,87.473,87.434,0.29462849]
[1643373891188,70.25,87.473,87.402,3.13165142]
[1643373891388,2.95669142,87.472,87.402,3.13165142]
[1643373891589,17.172,87.47,87.392,3.13165142]
[1643373891790,0.25,87.469,87.392,3.13165142]
[1643373891988,3.20669142,87.469,87.392,3.13165142]
[1643373892188,2.95669142,87.468,87.392,3.13165142]
[1643373892389,0.25,87.467,87.396,3.13165142]
[1643373892692,22.09352453,87.467,87.397,49.17853771]
[1643373892892,2.95669142,87.466,87.398,3.17570676]
[1643373893291,0.25,87.465,87.398,3.17570676]
[1643373894289,0.25,87.475,87.398,3.17570676]
[1643373894489,0.25,87.475,87.401,3.13165142]
[1643373894689,0.25,87.475,87.399,3.13165142]
[1643373894890,6.0,87.466,87.4,3.13165142]
[1643373895291,3.20669142,87.465,87.398,3.17570676]
[1643373895592,21.16205978,87.465,87.389,3.13165142]
[1643373895791,20.91205978,87.464,87.389,3.13165142]
[1643373896092,24.12383185,87.459,87.393,3.13165142]
[1643373896291,0.25,87.458,87.393,3.13165142]
[1643373896512,0.25,87.458,87.396,3.13165142]
[1643373896713,3.20669142,87.458,87.396,3.13165142]
[1643373896915,3.20669142,87.458,87.397,3.13165142]
[1643373897119,0.25,87.458,87.397,3.13165142]
[1643373897916,2.95669142,87.457,87.391,6.30525438]
[1643373898315,0.25,87.456,87.391,3.17360296]
[1643373898515,0.25,87.456,87.388,3.13165142]
[1643373898715,0.25,87.456,87.392,3.17360296]
[1643373898914,0.25,87.456,87.391,3.13165142]
[1643373899115,0.25,87.456,87.392,49.41801645]
[1643373899315,0.25,87.456,87.393,3.17360296]
[1643373900218,0.25,87.456,87.393,6.30525438]
[1643373900415,0.25,87.458,87.393,3.17360296]
[1643373900817,24.12383185,87.459,87.393,3.17360296]
[1643373901021,2.95669142,87.457,87.393,3.17360296]
[1643373901218,2.95669142,87.457,87.392,49.41801645]
[1643373902321,0.25,87.456,87.392,49.41801645]
[1643373902521,0.25,87.456,87.384,3.13165142]
[1643373902723,77.95669142,87.455,87.334,0.1]
[1643373902922,77.95669142,87.455,87.319,4.76381933]
[1643373902923,13.58,87.45,87.335,0.1]
[1643373903125,13.58,87.45,87.336,0.1]
[1643373903322,113.15,87.449,87.337,0.1]
[1643373903526,162.50357436,87.449,87.338,0.1]
[1643373903724,38.20640058,87.448,87.334,0.1]
[1643373903927,2.34787676,87.419,87.348,45.57704285]
[1643373904127,115.24787676,87.419,87.336,0.1]
[1643373904327,115.24787676,87.419,87.337,0.1]
[1643373904526,20.91205978,87.418,87.288,55.15154227]
[1643373904725,20.91205978,87.418,87.27,13.58]
[1643373904930,88.39506836,87.417,87.26,13.58]
[1643373905125,6.0,87.408,87.29,37.12954294]
[1643373905329,132.41089843,87.399,87.29,37.12954294]
[1643373905528,24.2571,87.398,87.274,3.16353616]
[1643373905734,0.30707109,87.379,87.258,3.16353616]
[1643373905928,35.65427378,87.398,87.257,48.6565]
[1643373905929,17.95536836,87.397,87.257,48.6565]
[1643373906130,2.95669142,87.378,87.257,48.6565]
[1643373906332,2.95669142,87.378,87.258,35.05486688]
[1643373906532,6.96081018,87.377,87.259,48.1639241]
[1643373906731,6.96081018,87.377,87.26,16.74449566]
[1643373906931,6.96081018,87.377,87.26,13.58]
[1643373907130,2.95669142,87.376,87.26,13.58]
[1643373907758,6.96081018,87.377,87.261,17.98851033]
[1643373908334,6.96081018,87.377,87.271,6.0]
[1643373908534,6.0,87.367,87.271,6.0]
[1643373909233,6.0,87.367,87.28,13.58]
[1643373909433,6.0,87.367,87.281,44.54436729]
[1643373909634,6.96081018,87.377,87.291,6.0]
[1643373909842,16.9344,87.449,87.3,13.58]
[1643373910036,17.0008,87.466,87.32,17.176]
[1643373910235,22.956,87.469,87.33,13.58]
[1643373910236,2.95669142,87.465,87.33,13.58]
[1643373910437,2.95669142,87.479,87.33,19.58]
[1643373910637,2.95669142,87.479,87.332,112.9]
[1643373910838,2.95669142,87.468,87.332,48.10387211]
[1643373911235,112.9,87.458,87.333,0.25]
[1643373911439,7.93829191,87.459,87.342,6.0]
[1643373911637,7.93829191,87.459,87.35,13.58]
[1643373911836,7.93829191,87.459,87.351,38.88938079]
[1643373912038,2.95669142,87.478,87.361,6.0]
[1643373912237,41.945,87.5,87.37,13.58]
[1643373912437,2.95669142,87.49,87.371,112.9]
[1643373912637,41.945,87.5,87.381,6.0]
[1643373912836,41.945,87.5,87.39,13.58]
[1643373913037,18.70523319,87.499,87.391,48.3005084]
[1643373913338,47.12899581,87.499,87.391,48.3005084]
[1643373913536,44.81552593,87.498,87.391,48.3005084]
[1643373913738,55.37485404,87.498,87.391,48.3005084]
[1643373913937,6.0,87.488,87.391,48.3005084]
[1643373914337,31.38045404,87.487,87.391,48.3005084]
[1643373914737,34.91624065,87.499,87.391,48.3005084]
[1643373914738,2.95669142,87.486,87.391,48.3005084]
[1643373914937,18.70523319,87.499,87.401,6.0]
[1643373915138,18.70523319,87.499,87.411,36.03046352]
[1643373915437,47.6871,87.552,87.412,113.15]
[1643373915637,47.6871,87.552,87.422,6.0]
[1643373915842,133.72112593,87.551,87.43,13.58]
[1643373916038,17.158,87.55,87.44,6.0]
[1643373916239,17.86443451,87.551,87.44,6.0]
[1643373916438,2.95669142,87.568,87.441,35.53703207]
[1643373916439,23.16374838,87.55,87.441,35.53703207]
[1643373916638,23.16374838,87.55,87.451,6.0]
[1643373916839,23.16374838,87.55,87.46,13.58]
[1643373917040,23.16374838,87.55,87.47,6.0]
[1643373917241,23.16374838,87.55,87.47,16.63]
[1643373917542,2.95669142,87.578,87.471,6.0]
[1643373917740,23.336,87.596,87.48,6.0]
[1643373917940,73.0239,87.68,87.49,13.58]
[1643373917941,90.1824,87.656,87.49,13.58]
[1643373918142,2.95669142,87.629,87.5,6.0]
[1643373918345,25.98824052,87.636,87.51,13.58]
[1643373918545,23.8322,87.655,87.52,23.138]
[1643373918750,2.95669142,87.663,87.53,13.58]
[1643373918942,2.95669142,87.683,87.53,23.35]
[1643373919142,3.0644749,87.682,87.54,6.0]
[1643373919348,2.95669142,87.702,87.55,13.58]
[1643373919542,6.60873026,87.701,87.61,17.12]
[1643373919742,6.60873026,87.701,87.62,13.58]
[1643373919946,6.60873026,87.701,87.621,40.48683599]
[1643373920344,6.60873026,87.701,87.631,6.0]
[1643373920947,6.60873026,87.701,87.621,40.48683599]
[1643373921246,2.95669142,87.7,87.56,13.58]
[1643373921445,6.0,87.691,87.56,13.58]
[1643373921844,0.25,87.69,87.57,23.128]
[1643373922046,2.95669142,87.721,87.58,13.58]
[1643373922244,71.1268,87.776,87.58,24.72]
[1643373922444,71.1268,87.776,87.59,6.0]
[1643373922445,2.95669142,87.759,87.59,6.0]
[1643373922763,6.0,87.746,87.6,13.58]
[1643373922963,6.0,87.746,87.61,13.58]
[1643373923163,26.47970874,87.745,87.611,37.66726529]
[1643373923364,0.25,87.744,87.611,37.66726529]
[1643373923569,0.25,87.744,87.621,6.0]
[1643373923765,0.25,87.744,87.622,0.25]
[1643373923965,0.25,87.744,87.63,17.116]
[1643373924166,0.25,87.744,87.631,44.39610229]
[1643373924367,23.52301732,87.745,87.631,44.64610229]
[1643373924566,23.52301732,87.745,87.641,6.0]
[1643373924968,23.52301732,87.745,87.642,2.37386277]
[1643373925169,2.95669142,87.78,87.642,23.89403976]
[1643373925367,13.58,87.85,87.652,6.0]
[1643373925566,226.9061,87.851,87.652,6.0]
[1643373925567,2.95669142,87.81,87.66,13.58]
[1643373925767,226.9061,87.851,87.661,0.25]
[1643373925968,2.95669142,87.822,87.69,17.105]
[1643373926172,22.85312359,87.79,87.69,13.58]
[1643373926468,2.95669142,87.789,87.671,38.61114981]
[1643373926868,2.95669142,87.789,87.672,0.25]
[1643373927071,2.95669142,87.789,87.671,38.61114981]
[1643373927470,17.112,87.78,87.671,38.61114981]
[1643373927870,3.20669142,87.779,87.671,38.61114981]
[1643373928071,3.20669142,87.779,87.672,0.25]
[1643373928272,0.25,87.779,87.672,0.25]
[1643373928569,6.0,87.78,87.671,38.61114981]
[1643373928773,0.25,87.779,87.671,38.61114981]
[1643373929971,2.95669142,87.778,87.671,38.61114981]
[1643373930172,0.25,87.779,87.671,38.61114981]
[1643373931272,23.112,87.78,87.672,0.25]
[1643373931474,23.112,87.78,87.671,38.61114981]
[1643373931769,6.0,87.78,87.672,0.25]
[1643373932169,22.85312359,87.79,87.671,38.61114981]
[1643373932370,22.85312359,87.79,87.68,6.0]
[1643373932573,6.0,87.78,87.68,6.0]
[1643373932771,3.61858502,87.759,87.68,6.0]
[1643373933171,0.25,87.758,87.68,6.0]
[1643373933672,0.25,87.758,87.671,38.61114981]
[1643373933877,2.95669142,87.757,87.671,38.61114981]
[1643373934273,0.25,87.756,87.671,38.61114981]
[1643373934972,0.25,87.756,87.65,13.58]
[1643373935173,2.95669142,87.755,87.65,13.58]
[1643373935373,111.9,87.74,87.513,102.89359658]
[1643373935574,111.9,87.74,87.61,13.58]
[1643373935775,51.72679142,87.739,87.61,30.699]
[1643373935973,19.61735081,87.738,87.611,41.26003108]
[1643373936374,0.25,87.737,87.611,41.26003108]
[1643373936576,0.25,87.737,87.612,22.46636818]
[1643373936774,0.25,87.737,87.62,6.0]
[1643373937177,0.25,87.737,87.641,41.63388198]
[1643373937376,0.25,87.737,87.65,13.58]
[1643373937581,150.958,87.809,87.65,19.58]
[1643373937978,2.95669142,87.808,87.651,2.12386277]
[1643373938178,2.95669142,87.808,87.66,17.11]
[1643373938382,17.114,87.77,87.66,19.58]
[1643373938578,17.114,87.77,87.67,6.0]
[1643373938579,25.19654434,87.769,87.67,6.0]
[1643373938779,0.25,87.768,87.661,38.7411187]
[1643373938979,111.9,87.745,87.661,38.7411187]
[1643373939281,1.52516427,87.744,87.661,38.7411187]
[1643373939679,1.52516427,87.744,87.67,13.58]
[1643373940886,0.25,87.744,87.67,26.4]
[1643373941283,0.25,87.776,87.67,26.4]
[1643373941884,25.36789257,87.776,87.67,43.508]
[1643373942282,25.36789257,87.776,87.67,30.688]
[1643373942482,115.85669142,87.775,87.661,38.7411187]
[1643373942682,0.25,87.774,87.67,6.0]
[1643373942881,0.25,87.774,87.595,112.9]
[1643373942882,0.30942219,87.731,87.627,2.11593491]
[1643373943083,0.30942219,87.731,87.61,30.699]
[1643373943282,46.9289,87.739,87.61,13.58]
[1643373943483,8.95669142,87.73,87.61,13.58]
[1643373943782,1.60381604,87.729,87.611,40.22465961]
[1643373943982,4.56050746,87.729,87.611,40.22465961]
[1643373944185,2.95669142,87.728,87.611,40.22465961]
[1643373944386,0.25,87.727,87.611,40.22465961]
[1643373944784,0.25,87.727,87.612,0.25]
[1643373944985,2.95669142,87.728,87.612,0.25]
[1643373945384,2.95669142,87.728,87.612,113.15]
[1643373945589,1.35381604,87.729,87.612,113.15]
[1643373945789,1.35381604,87.729,87.62,23.118]
[1643373945990,1.35381604,87.729,87.631,47.85495076]
[1643373946195,0.25,87.728,87.631,47.85495076]
[1643373946395,3.20669142,87.728,87.631,47.85495076]
[1643373946693,6.0,87.72,87.631,47.85495076]
[1643373946894,0.25,87.719,87.631,47.85495076]
[1643373947091,3.20669142,87.719,87.631,47.85495076]
[1643373947293,25.11789257,87.709,87.631,47.85495076]
[1643373947493,3.08795959,87.708,87.631,47.85495076]
[1643373947695,6.29465101,87.708,87.64,6.0]
[1643373947896,2.95669142,87.707,87.631,47.85495076]
[1643373948199,3.08795959,87.706,87.631,47.85495076]
[1643373948395,3.33795959,87.706,87.6,13.58]
[1643373948600,17.126,87.7,87.61,6.0]
[1643373948797,116.23795959,87.699,87.61,6.0]
[1643373948995,3.08795959,87.698,87.59,6.0]
[1643373949399,0.25,87.697,87.591,47.57913929]
[1643373949596,3.20669142,87.697,87.6,6.0]
[1643373949797,1.35381604,87.695,87.6,6.0]
[1643373950300,0.25,87.694,87.601,0.25]
[1643373950499,0.25,87.694,87.601,121.58]
[1643373950898,0.25,87.694,87.611,43.69452981]
[1643373951101,0.25,87.694,87.62,6.0]
[1643373952702,1.35381604,87.695,87.62,6.0]
[1643373953299,2.95669142,87.727,87.63,17.117]
[1643373953499,3.0968974,87.726,87.64,13.58]
[1643373953702,3.0968974,87.737,87.64,30.1]
[1643373953900,3.0968974,87.737,87.641,0.25]
[1643373954100,3.0968974,87.737,87.641,113.15]
[1643373954301,23.06477209,87.736,87.642,40.21593955]
[1643373954511,3.0968974,87.735,87.65,6.0]
[1643373954703,3.3468974,87.735,87.65,19.58]
[1643373954907,6.05358882,87.734,87.65,19.58]
[1643373955103,3.0968974,87.733,87.65,19.58]
[1643373955303,3.3468974,87.733,87.65,19.58]
[1643373955503,3.0968974,87.732,87.65,19.58]
[1643373956102,2.95669142,87.743,87.65,19.58]
[1643373956103,3.0968974,87.735,87.65,19.58]
[1643373956302,3.0968974,87.752,87.651,113.15]
[1643373956535,3.0968974,87.772,87.651,132.31043006]
[1643373956702,3.0968974,87.813,87.661,112.9]
[1643373956904,9.29326082,87.814,87.663,112.9]
[1643373957107,24.42348601,87.812,87.67,189.28]
[1643373957303,24.42348601,87.812,87.671,0.25]
[1643373957503,3.0968974,87.811,87.69,17.104]
[1643373957703,3.0968974,87.811,87.701,43.06909981]
[1643373957905,6.0,87.81,87.702,0.25]
[1643373958104,3.0968974,87.809,87.71,6.0]
[1643373958305,3.0968974,87.829,87.72,13.58]
[1643373958503,3.0968974,87.841,87.73,6.0]
[1643373958708,3.0968974,87.841,87.75,17.092]
[1643373958906,2.95669142,87.84,87.75,30.672]
[1643373959107,23.52129706,87.839,87.751,39.35533338]
[1643373959309,0.25,87.838,87.751,39.35533338]
[1643373959508,3.0968974,87.837,87.751,39.35533338]
[1643373959909,6.05358882,87.837,87.751,39.35533338]
[1643373960109,3.0968974,87.836,87.76,6.0]
[1643373960313,6.05358882,87.836,87.76,16.16]
[1643373960509,6.05358882,87.836,87.76,29.74]
[1643373960812,6.1721878,87.896,87.76,29.74]
[1643373961009,111.9,87.85,87.76,6.0]
[1643373961207,2.95669142,87.835,87.751,39.35533338]
[1643373961408,21.62418691,87.834,87.751,39.35533338]
[1643373961711,3.08576968,87.833,87.751,39.35533338]
[1643373962010,17.1,87.83,87.751,39.35533338]
[1643373962208,3.08576968,87.829,87.751,39.35533338]
[1643373962410,6.2924611,87.829,87.751,39.35533338]
[1643373962608,4.8475217,87.819,87.751,39.35533338]
[1643373962907,3.33576968,87.818,87.751,39.35533338]
[1643373963111,17.103,87.81,87.72,13.58]
[1643373963308,17.103,87.81,87.67,226.713]
[1643373963309,0.25,87.809,87.665,24.8035]
[1643373963509,6.2924611,87.809,87.67,13.58]
[1643373963712,3.20669142,87.809,87.67,13.58]
[1643373963917,6.0424611,87.808,87.67,13.58]
[1643373964138,3.08576968,87.807,87.671,36.63952786]
[1643373964433,21.62418691,87.789,87.671,36.63952786]
[1643373964840,13.58,87.78,87.671,36.63952786]
[1643373965045,125.48,87.78,87.671,36.63952786]
[1643373965342,119.1924611,87.779,87.671,36.63952786]
[1643373965536,3.08576968,87.778,87.671,36.63952786]
[1643373965736,6.0424611,87.778,87.671,36.63952786]
[1643373965940,3.20669142,87.777,87.671,36.63952786]
[1643373966138,4.8475217,87.769,87.671,36.63952786]
[1643373966339,3.33576968,87.768,87.671,36.63952786]
[1643373966540,6.2924611,87.768,87.671,36.63952786]
[1643373966740,3.08576968,87.767,87.671,36.63952786]
[1643373966945,6.0424611,87.767,87.671,36.63952786]
[1643373967141,3.20669142,87.766,87.671,36.63952786]
[1643373967341,6.2924611,87.766,87.671,36.63952786]
[1643373967544,2.95669142,87.765,87.63,30.696]
[1643373967742,112.9,87.749,87.63,13.58]
[1643373968146,6.2924611,87.748,87.63,13.58]
[1643373968342,3.08576968,87.747,87.63,13.58]
[1643373968547,21.62418691,87.746,87.64,6.0]
[1643373968843,21.62418691,87.746,87.641,0.25]
[1643373969045,0.25,87.745,87.641,0.25]
[1643373969444,2.95669142,87.744,87.631,44.21786671]
[1643373969645,6.0,87.74,87.631,44.21786671]